fUSD/lending_fUSD_20240906
["ID","MTS","AMOUNT","RATE_DAILY","PERIOD"]
[337360828,1725625937542,-834.44,0.00013698,2]
[337360829,1725625937552,-500.0,0.00013698,2]
[337360830,1725625937561,-834.44,0.00013698,2]
[337360831,1725625937570,-814.87,0.00013698,2]
[337360832,1725625937579,-500.0,0.00013698,2]
[337360833,1725625937588,-834.44,0.00013698,2]
[337360834,1725625937597,-814.87,0.00013698,2]
[337360835,1725625937607,-500.48629652,0.00013698,2]
[337360836,1725625937616,-500.0,0.00013698,2]
[337360837,1725625937625,-834.44,0.00013698,2]
[337360838,1725625937634,-1155.21,0.00013698,2]
[337360839,1725625937644,-814.87,0.00013698,2]
[337360840,1725625937657,-568.32,0.00013698,2]
[337360841,1725625937667,-500.0,0.00013698,2]
[337360842,1725625937681,-834.45637058,0.00013698,2]
[337360843,1725625937692,-1155.21,0.00013698,2]
[337360844,1725625937702,-1555.38,0.00013698,2]
[337360845,1725625937712,-814.87,0.00013698,2]
[337360846,1725625937724,-568.32,0.00013698,2]
[337360847,1725625937747,-500.0,0.00013698,2]
[337360848,1725625937762,-1155.21,0.00013698,2]
[337360849,1725625937771,-814.87,0.00013698,2]
[337360850,1725625937781,-1245.25,0.00013698,2]
[337360851,1725625937795,-1555.38,0.00013698,2]
[337360852,1725625937806,-568.32,0.00013698,2]
[337360853,1725625937815,-500.0,0.00013698,2]
[337360854,1725625937825,-1155.21,0.00013698,2]
[337360855,1725625937835,-814.87,0.00013698,2]
[337360856,1725625937845,-1555.38,0.00013698,2]
[337360857,1725625937854,-1245.25,0.00013698,2]
[337360858,1725625937864,-568.32,0.00013698,2]
[337360859,1725625937873,-500.0,0.00013698,2]
[337360860,1725625937883,-1155.21,0.00013698,2]
[337360861,1725625937892,-1245.25,0.00013698,2]
[337360862,1725625937901,-1555.38,0.00013698,2]
[337360863,1725625937911,-500.0,0.00013698,2]
[337360864,1725625937920,-500.0,0.00013698,2]
[337360865,1725625937935,-814.87,0.00013698,2]
[337360866,1725625937944,-568.32,0.00013698,2]
[337360867,1725625937953,-1155.21,0.00013698,2]
[337360868,1725625937962,-1245.25,0.00013698,2]
[337360869,1725625937974,-1555.38,0.00013698,2]
[337360870,1725625937984,-500.0,0.00013698,2]
[337360871,1725625937993,-814.87,0.00013698,2]
[337360872,1725625938002,-500.0,0.00013698,2]
[337360873,1725625938011,-568.32,0.00013698,2]
[337360874,1725625938021,-1245.25,0.00013698,2]
[337360875,1725625938030,-1155.21,0.00013698,2]
[337360876,1725625938040,-1555.38,0.00013698,2]
[337360877,1725625938049,-500.0,0.00013698,2]
[337360878,1725625938060,-814.87,0.00013698,2]
[337360879,1725625938070,-500.0,0.00013698,2]
[337360880,1725625938080,-568.32,0.00013698,2]
[337360881,1725625938090,-1245.25,0.00013698,2]
[337360882,1725625938100,-1155.21,0.00013698,2]
[337360883,1725625938110,-1555.38,0.00013698,2]
[337360884,1725625938121,-500.0,0.00013698,2]
[337360885,1725625938131,-500.0,0.00013698,2]
[337360886,1725625938142,-568.32,0.00013698,2]
[337360887,1725625938151,-1245.25,0.00013698,2]
[337360888,1725625938161,-1155.21,0.00013698,2]
[337360889,1725625938171,-1555.38,0.00013698,2]
[337360890,1725625938187,-500.0,0.00013698,2]
[337360891,1725625938197,-500.0,0.00013698,2]
[337360892,1725625938207,-568.32,0.00013698,2]
[337360893,1725625938217,-814.87,0.00013698,2]
[337360894,1725625938229,-1555.38,0.00013698,2]
[337360895,1725625938240,-500.0,0.00013698,2]
[337360896,1725625938249,-472.41612165,0.00013698,2]
[337360897,1725625938261,-568.32,0.00013698,2]
[337360898,1725625938271,-814.87,0.00013698,2]
[337360899,1725625938282,-500.0,0.00013698,2]
[337360900,1725625938292,-1245.25,0.00013698,2]
[337360901,1725625938302,-568.32,0.00013698,2]
[337360902,1725625938312,-1155.21,0.00013698,2]
[337360903,1725625938322,-525.39608003,0.00013698,2]
[337360904,1725625938331,-814.87,0.00013698,2]
[337360905,1725625938341,-1555.38,0.00013698,2]
[337360906,1725625938350,-568.32,0.00013698,2]
[337360907,1725625938359,-1245.25,0.00013698,2]
[337360908,1725625938368,-500.0,0.00013698,2]
[337360909,1725625938378,-814.87,0.00013698,2]
[337360910,1725625938387,-1155.21,0.00013698,2]
[337360911,1725625938396,-1555.38,0.00013698,2]
[337360912,1725625938406,-500.0,0.00013698,2]
[337360913,1725625938415,-568.32,0.00013698,2]
[337360914,1725625938428,-500.0,0.00013698,2]
[337360915,1725625938437,-1245.25,0.00013698,2]
[337360916,1725625938446,-1155.21,0.00013698,2]
[337360917,1725625938457,-814.87,0.00013698,2]
[337360918,1725625938466,-540.91,0.00013698,2]
[337360919,1725625938475,-1555.38,0.00013698,2]
[337360920,1725625938484,-500.0,0.00013698,2]
[337360921,1725625938493,-568.32,0.00013698,2]
[337360922,1725625938503,-1245.25,0.00013698,2]
[337360923,1725625938512,-815.05,0.00013698,2]
[337360924,1725625938521,-500.0,0.00013698,2]
[337360925,1725625938530,-1155.21,0.00013698,2]
[337360926,1725625938539,-540.91,0.00013698,2]
[337360927,1725625938548,-1555.38,0.00013698,2]
[337360928,1725625938558,-500.0,0.00013698,2]
[337360929,1725625938567,-494.77815011,0.00013698,2]
[337360930,1725625939876,-1144.0,0.00013454,2]
[337360931,1725625940081,-179.26,0.00013637,2]
[337360932,1725625940091,-145.59607925,0.00013698,2]
[337360933,1725625940103,-384.40392075,0.00013698,2]
[337360934,1725625940112,-229.5439716,0.00013698,2]
[337360935,1725625940474,-270.4560284,0.00013698,2]
[337360936,1725625940484,-99.15230655,0.00013698,2]
[337360937,1725625940518,-441.75769345,0.00013698,2]
[337360938,1725625940528,-1555.38,0.00013698,2]
[337360939,1725625940538,-1155.21,0.00013698,2]
[337360940,1725625940547,-1245.25,0.00013698,2]
[337360941,1725625940557,-500.0,0.00013698,2]
[337360942,1725625940566,-500.0,0.00013698,2]
[337360943,1725625940576,-540.91,0.00013698,2]
[337360944,1725625940585,-1155.21,0.00013698,2]
[337360945,1725625940595,-1245.25,0.00013698,2]
[337360946,1725625940604,-1555.38,0.00013698,2]
[337360947,1725625940614,-500.0,0.00013698,2]
[337360948,1725625940624,-500.0,0.00013698,2]
[337360949,1725625940634,-524.44,0.00013698,2]
[337360950,1725625940643,-1155.21,0.00013698,2]
[337360951,1725625940658,-1245.25,0.00013698,2]
[337360952,1725625940668,-1555.38,0.00013698,2]
[337360953,1725625940683,-500.0,0.00013698,2]
[337360954,1725625940695,-500.0,0.00013698,2]
[337360955,1725625940705,-524.44,0.00013698,2]
[337360956,1725625940714,-1155.21,0.00013698,2]
[337360957,1725625940726,-1245.25,0.00013698,2]
[337360958,1725625940740,-1555.38,0.00013698,2]
[337360959,1725625940750,-500.0,0.00013698,2]
[337360960,1725625940760,-500.0,0.00013698,2]
[337360961,1725625940769,-524.44,0.00013698,2]
[337360962,1725625940779,-1155.21,0.00013698,2]
[337360963,1725625940788,-1245.25,0.00013698,2]
[337360964,1725625940797,-500.0,0.00013698,2]
[337360965,1725625940806,-1555.38,0.00013698,2]
[337360966,1725625940815,-524.44,0.00013698,2]
[337360967,1725625940824,-500.0,0.00013698,2]
[337360968,1725625940834,-572.7749397,0.00013698,2]
[337360969,1725625943612,800.0,0.00026986,120]
[337360970,1725625951190,800.0,0.00026986,120]
[337360972,1725625983660,800.0,0.00026986,120]
[337360973,1725626009424,500.0,0.00025938,120]
[337360975,1725626045807,800.0,0.00026986,120]
[337360976,1725626076659,750.0,0.00011,2]
[337360977,1725626103682,800.0,0.00026986,120]
[337360978,1725626113516,500.0,8.22e-05,2]
[337360979,1725626114110,2100.0,8.22e-05,2]
[337360980,1725626115129,500.0,9.59e-05,2]
[337360981,1725626115713,2100.0,9.59e-05,2]
[337360982,1725626116688,500.0,0.0001096,2]
[337360983,1725626117334,2100.0,0.0001096,2]
[337360984,1725626129785,500.0,8.22e-05,2]
[337360985,1725626131356,500.0,0.0001096,2]
[337360986,1725626138354,500.0,8.22e-05,2]
[337360987,1725626139954,500.0,0.0001096,2]
[337360988,1725626164173,1800.0,8.22e-05,2]
[337360989,1725626165763,1800.0,9.59e-05,2]
[337360990,1725626167401,1800.0,0.0001096,2]
[337360991,1725626170752,800.0,0.00026986,120]
[337360992,1725626224014,394.03,0.00026986,120]
[337360993,1725626227488,326.66,0.00010686,2]
[337360996,1725626293643,-500.0,0.0001233,2]
[337360997,1725626293664,-2100.0,0.0001233,2]
[337360998,1725626293684,-1800.0,0.0001233,2]
[337360999,1725626293706,-176.87,0.00012565,2]
[337361000,1725626293726,-250.0,0.00012664,2]
[337361001,1725626293747,-163.02,0.00012688,2]
[337361002,1725626293768,-2000.0,0.00012728,2]
[337361003,1725626293788,-150.39,0.00012772,2]
[337361004,1725626293808,-2859.72,0.0001278,2]
[337361005,1725626298983,-6578.6,0.0001278,2]
[337361006,1725626299005,-250.0,0.0001278,2]
[337361007,1725626299026,-356.26,0.00012799,2]
[337361008,1725626299047,-400.0,0.00012845,2]
[337361009,1725626299071,-534.22,0.00012845,2]
[337361010,1725626299093,-1880.92,0.00012895,2]
[337361011,1725626304850,-10000.0,0.00012895,2]
[337361012,1725626311162,-1000.0,0.00031448,60]
[337361013,1725626311187,-233.78522953,0.00031448,60]
[337361014,1725626311212,-530.82121278,0.00031448,60]
[337361015,1725626311236,-2132.65947149,0.00031448,60]
[337361016,1725626311261,-3000.0,0.00031448,120]
[337361017,1725626311285,-155.0,0.00031448,120]
[337361018,1725626311309,-554.872559,0.00031448,120]
[337361019,1725626311336,-5000.0,0.00031448,33]
[337361020,1725626311360,-941.49994138,0.00031448,120]
[337361021,1725626311384,-321.0,0.00031448,120]
[337361022,1725626311408,-1448.20452862,0.00031448,120]
[337361023,1725626311431,-402.83557201,0.00031448,120]
[337361024,1725626311455,-866.03463844,0.00031448,120]
[337361025,1725626311479,-200.0,0.00031448,120]
[337361026,1725626311502,-580.0,0.00031448,99]
[337361027,1725626352638,1100.0,8.22e-05,2]
[337361028,1725626354236,1100.0,9.59e-05,2]
[337361029,1725626355826,1100.0,0.0001096,2]
[337361030,1725626370580,500.0,8.22e-05,2]
[337361031,1725626370607,1200.0,8.22e-05,2]
[337361032,1725626372157,1200.0,9.59e-05,2]
[337361033,1725626372182,500.0,0.0001096,2]
[337361034,1725626374048,1200.0,0.0001096,2]
[337361040,1725626462597,-1100.0,0.0001233,2]
[337361041,1725626462619,-1000.0,0.0001233,2]
[337361042,1725626470232,1105.36574702,0.00031448,120]
[337361043,1725626519430,532.2,0.00027,120]
[337361044,1725626527040,532.33,0.00027,120]
[337361045,1725626536524,532.33,0.00027,120]
[337361046,1725626545448,800.0,8.868e-05,2]
[337361047,1725626547050,800.0,0.00010238,2]
[337361048,1725626548621,800.0,0.00011608,2]
[337361049,1725626550105,532.33,0.00027,120]
[337361050,1725626609399,500.0,0.00025266,120]
[337361051,1725626609971,500.0,0.00026899,120]
[337361052,1725626669136,253.6345385,0.00031448,33]
[337361053,1725626703134,246.6326575,0.00031448,120]
[337361054,1725626734423,563.3673425,0.00031448,33]
[337361055,1725626755776,155.739583,0.00031448,40]
[337361056,1725626757170,155.739583,0.00031448,40]
[337361058,1725626807365,-200.0,0.0001233,2]
[337361059,1725626807392,-2000.0,0.00012563,2]
[337361060,1725626807415,-1000.0,0.00012603,2]
[337361061,1725626807436,-279.25,0.00012644,2]
[337361062,1725626807458,-5602.26,0.00012693,2]
[337361063,1725626807479,-250.0,0.00012793,2]
[337361064,1725626807500,-300.0,0.00012799,2]
[337361065,1725626807520,-368.49,0.000128,2]
[337361066,1725626838335,166.24,0.00010959,2]
[337361067,1725626895334,900.0,8.868e-05,2]
[337361068,1725626896921,900.0,0.00010238,2]
[337361069,1725626898548,900.0,0.00011608,2]
[337361070,1725626926703,355.16,0.00010749,2]
[337361073,1725626965941,300.0,0.00012,2]
[337361077,1725627031481,-180.94,0.00012658,2]
[337361078,1725627031491,-250.0,0.00012737,2]
[337361079,1725627031500,-2825.42817237,0.000128,2]
[337361080,1725627031509,-800.0,0.00012978,2]
[337361081,1725627031518,-900.0,0.00012978,2]
[337361082,1725627031527,-150.0,0.00012986,2]
[337361083,1725627031535,-800.0,0.00013,2]
[337361084,1725627031545,-355.16,0.00013013,2]
[337361085,1725627031555,-500.0,0.00013014,2]
[337361086,1725627031567,-179.26,0.00013285,2]
[337361087,1725627031577,-150.0,0.00013364,2]
[337361088,1725627031588,-300.0,0.00013364,2]
[337361089,1725627031599,-500.0,0.00013365,2]
[337361090,1725627031609,-3280.80368934,0.00013365,2]
[337361091,1725627031621,-500.0,0.00013365,2]
[337361092,1725627031644,-203.24911066,0.00013365,2]
[337361093,1725627031654,-648.2098586,0.00013365,2]
[337361094,1725627031665,-479.84771151,0.00013365,2]
[337361095,1725627031676,-1553.81242989,0.00013365,2]
[337361096,1725627031685,-1448.2095,0.00013365,2]
[337361097,1725627031695,-1867.85013043,0.00013365,2]
[337361098,1725627031712,-456.94746957,0.00013365,2]
[337361099,1725627031721,-1000.0,0.00013365,2]
[337361100,1725627031730,-500.0,0.000134,4]
[337361101,1725627031738,-499.99,0.00013477,2]
[337361102,1725627031748,-1256.0,0.00013477,2]
[337361103,1725627031757,-624.0,0.00013477,2]
[337361104,1725627031766,-680.741,0.00013477,2]
[337361105,1725627031776,-169.143,0.00013477,2]
[337361106,1725627031784,-931.647,0.00013477,2]
[337361107,1725627031794,-811.0,0.00013477,2]
[337361108,1725627031803,-207.728,0.00013477,2]
[337361109,1725627031812,-1900.0,0.00013477,2]
[337361110,1725627031822,-552.0,0.00013477,2]
[337361111,1725627031837,-248.0,0.00013477,2]
[337361112,1725627031845,-3341.0,0.00013477,2]
[337361113,1725627031854,-483.541,0.00013477,2]
[337361114,1725627031864,-150.0,0.00013477,2]
[337361115,1725627031873,-1000.0,0.000135,4]
[337361116,1725627031882,-421.15547501,0.00013516,2]
[337361117,1725627031891,-5994.25193068,0.00013588,2]
[337361119,1725627031900,-500.0,0.00013588,2]
[337361121,1725627031909,-176.56939893,0.00013598,2]
[337361123,1725627031919,-310.39588908,0.00013598,2]
[337361125,1725627031928,-1569.0,0.00013598,2]
[337361126,1725627031938,-3454.323,0.00013598,2]
[337361127,1725627031947,-405.6249,0.00013598,2]
[337361128,1725627031956,-2500.0,0.00013598,2]
[337361129,1725627031965,-7500.0,0.00013598,2]
[337361130,1725627031974,-1327.01,0.000136,2]
[337361131,1725627031984,-150.0,0.000136,2]
[337361132,1725627031993,-1500.0,0.000136,4]
[337361133,1725627032004,-160.22081796,0.00013673,2]
[337361134,1725627032014,-784.67308213,0.00013697,2]
[337361136,1725627032023,-298.73300202,0.00013697,2]
[337361137,1725627032032,-500.0,0.00013697,2]
[337361138,1725627032041,-408.42563645,0.00013697,2]
[337361139,1725627032050,-341.47763238,0.00013697,2]
[337361140,1725627032059,-612.97710979,0.00013697,2]
[337361141,1725627032072,-500.0,0.00013697,2]
[337361142,1725627032081,-500.0,0.00013697,2]
[337361143,1725627032090,-429.69073205,0.00013697,2]
[337361144,1725627032100,-150.51745403,0.00013697,2]
[337361145,1725627032109,-500.0,0.00013698,2]
[337361146,1725627032118,-500.0,0.00013698,2]
[337361147,1725627032127,-500.0,0.00013698,2]
[337361148,1725627032136,-500.0,0.00013698,2]
[337361149,1725627032145,-500.0,0.00013698,2]
[337361150,1725627032155,-500.0,0.00013698,2]
[337361151,1725627032164,-500.0,0.00013698,2]
[337361152,1725627032174,-500.0,0.00013698,2]
[337361153,1725627032183,-500.0,0.00013698,2]
[337361154,1725627032192,-500.0,0.00013698,2]
[337361155,1725627032201,-500.0,0.00013698,2]
[337361156,1725627032210,-500.0,0.00013698,2]
[337361157,1725627032219,-500.0,0.00013698,2]
[337361158,1725627032229,-500.0,0.00013698,2]
[337361159,1725627032238,-500.0,0.00013698,2]
[337361160,1725627032247,-500.0,0.00013698,2]
[337361161,1725627032256,-500.0,0.00013698,2]
[337361162,1725627032265,-503.33,0.00013698,2]
[337361163,1725627032275,-500.0,0.00013698,2]
[337361164,1725627032284,-500.0,0.00013698,2]
[337361165,1725627032293,-500.0,0.00013698,2]
[337361166,1725627032302,-500.0,0.00013698,2]
[337361167,1725627032313,-500.0,0.00013698,2]
[337361168,1725627032322,-55.70828998,0.00013698,2]
[337361169,1725627032353,-457.84623702,0.00013698,2]
[337361170,1725627032364,-500.0,0.00013698,2]
[337361171,1725627032373,-500.0,0.00013698,2]
[337361172,1725627032383,-500.0,0.00013698,2]
[337361173,1725627032392,-500.0,0.00013698,2]
[337361174,1725627032403,-500.0,0.00013698,2]
[337361175,1725627032412,-500.0,0.00013698,2]
[337361176,1725627032422,-500.0,0.00013698,2]
[337361177,1725627032432,-500.0,0.00013698,2]
[337361178,1725627032441,-187.32376298,0.00013698,2]
[337361179,1725627032457,-312.67623702,0.00013698,2]
[337361180,1725627032467,-500.0,0.00013698,2]
[337361181,1725627032477,-500.0,0.00013698,2]
[337361182,1725627032487,-500.0,0.00013698,2]
[337361183,1725627032496,-500.0,0.00013698,2]
[337361184,1725627032506,-500.0,0.00013698,2]
[337361185,1725627032516,-500.0,0.00013698,2]
[337361186,1725627032525,-500.0,0.00013698,2]
[337361187,1725627032535,-560.90978981,0.00013698,2]
[337361188,1725627032545,-500.0,0.00013698,2]
[337361189,1725627032554,-500.0,0.00013698,2]
[337361190,1725627032565,-500.0,0.00013698,2]
[337361191,1725627032575,-500.0,0.00013698,2]
[337361192,1725627032584,-416.94,0.00013698,2]
[337361193,1725627032593,-500.0,0.00013698,2]
[337361194,1725627032602,-500.0,0.00013698,2]
[337361195,1725627032613,-500.0,0.00013698,2]
[337361196,1725627032622,-500.0,0.00013698,2]
[337361197,1725627032631,-500.0,0.00013698,2]
[337361198,1725627032642,-500.0,0.00013698,2]
[337361199,1725627032651,-500.0,0.00013698,2]
[337361200,1725627032660,-500.0,0.00013698,2]
[337361201,1725627032669,-500.0,0.00013698,2]
[337361202,1725627032678,-500.0,0.00013698,2]
[337361203,1725627032688,-500.0,0.00013698,2]
[337361204,1725627032697,-500.0,0.00013698,2]
[337361205,1725627032707,-500.0,0.00013698,2]
[337361206,1725627032717,-500.0,0.00013698,2]
[337361207,1725627032727,-500.0,0.00013698,2]
[337361208,1725627032737,-500.0,0.00013698,2]
[337361209,1725627032746,-549.1758599,0.00013698,2]
[337361210,1725627032755,-431.61561025,0.00013698,2]
[337361211,1725627032765,-500.0,0.00013698,2]
[337361212,1725627032775,-500.0,0.00013698,2]
[337361213,1725627032784,-500.0,0.00013698,2]
[337361214,1725627032794,-500.0,0.00013698,2]
[337361215,1725627032803,-500.0,0.00013698,2]
[337361216,1725627032814,-626.43452802,0.00013698,2]
[337361217,1725627032824,-500.0,0.00013698,2]
[337361218,1725627032834,-500.0,0.00013698,2]
[337361219,1725627032843,-500.0,0.00013698,2]
[337361220,1725627032852,-500.0,0.00013698,2]
[337361221,1725627032861,-500.0,0.00013698,2]
[337361222,1725627032870,-500.0,0.00013698,2]
[337361223,1725627032879,-500.0,0.00013698,2]
[337361224,1725627032889,-284.27,0.00013698,2]
[337361225,1725627032898,-500.0,0.00013698,2]
[337361226,1725627032907,-500.0,0.00013698,2]
[337361227,1725627032917,-500.0,0.00013698,2]
[337361228,1725627032926,-500.0,0.00013698,2]
[337361229,1725627032935,-500.0,0.00013698,2]
[337361230,1725627032944,-500.0,0.00013698,2]
[337361231,1725627032953,-500.0,0.00013698,2]
[337361232,1725627032963,-500.0,0.00013698,2]
[337361233,1725627032972,-500.0,0.00013698,2]
[337361234,1725627032982,-500.0,0.00013698,2]
[337361235,1725627032991,-500.0,0.00013698,2]
[337361236,1725627033005,-500.0,0.00013698,2]
[337361237,1725627033014,-500.0,0.00013698,2]
[337361238,1725627033024,-500.0,0.00013698,2]
[337361239,1725627033034,-500.0,0.00013698,2]
[337361240,1725627033043,-500.0,0.00013698,2]
[337361241,1725627033053,-500.0,0.00013698,2]
[337361242,1725627033065,-500.0,0.00013698,2]
[337361243,1725627033081,-500.0,0.00013698,2]
[337361244,1725627033091,-500.0,0.00013698,2]
[337361245,1725627033101,-500.0,0.00013698,2]
[337361246,1725627033112,-500.0,0.00013698,2]
[337361247,1725627033122,-500.0,0.00013698,2]
[337361248,1725627033131,-500.0,0.00013698,2]
[337361249,1725627033141,-500.0,0.00013698,2]
[337361250,1725627033150,-500.0,0.00013698,2]
[337361251,1725627033160,-500.0,0.00013698,2]
[337361252,1725627033170,-181.51413488,0.00013698,2]
[337361253,1725627033180,-500.0,0.00013698,2]
[337361254,1725627033190,-500.0,0.00013698,2]
[337361255,1725627033200,-500.0,0.00013698,2]
[337361256,1725627033210,-500.0,0.00013698,2]
[337361257,1725627033220,-500.0,0.00013698,2]
[337361258,1725627033231,-500.0,0.00013698,2]
[337361259,1725627033240,-500.0,0.00013698,2]
[337361260,1725627033251,-500.0,0.00013698,2]
[337361261,1725627033261,-614.96,0.00013698,2]
[337361262,1725627033271,-500.0,0.00013698,2]
[337361263,1725627033281,-500.0,0.00013698,2]
[337361264,1725627033290,-500.0,0.00013698,2]
[337361265,1725627033301,-500.0,0.00013698,2]
[337361266,1725627033311,-500.0,0.00013698,2]
[337361267,1725627033326,-500.0,0.00013698,2]
[337361268,1725627033336,-500.0,0.00013698,2]
[337361269,1725627033346,-500.0,0.00013698,2]
[337361270,1725627033355,-537.632312,0.00013698,2]
[337361271,1725627033366,-210.64160791,0.00013698,2]
[337361272,1725627033376,-500.0,0.00013698,2]
[337361273,1725627033386,-500.0,0.00013698,2]
[337361274,1725627033395,-500.0,0.00013698,2]
[337361275,1725627033405,-500.0,0.00013698,2]
[337361276,1725627033416,-500.0,0.00013698,2]
[337361277,1725627033425,-500.0,0.00013698,2]
[337361278,1725627033435,-500.0,0.00013698,2]
[337361279,1725627033445,-500.0,0.00013698,2]
[337361280,1725627033455,-256.50487931,0.00013698,2]
[337361281,1725627033465,-500.0,0.00013698,2]
[337361282,1725627033475,-500.0,0.00013698,2]
[337361283,1725627033485,-500.0,0.00013698,2]
[337361284,1725627033495,-500.0,0.00013698,2]
[337361285,1725627033505,-500.0,0.00013698,2]
[337361286,1725627033515,-500.0,0.00013698,2]
[337361287,1725627033525,-500.0,0.00013698,2]
[337361288,1725627033534,-500.98391676,0.00013698,2]
[337361289,1725627033544,-556.84627415,0.00013698,2]
[337361290,1725627033553,-500.0,0.00013698,2]
[337361291,1725627033565,-500.0,0.00013698,2]
[337361292,1725627033575,-500.0,0.00013698,2]
[337361293,1725627033585,-500.0,0.00013698,2]
[337361294,1725627033595,-500.0,0.00013698,2]
[337361295,1725627033605,-500.0,0.00013698,2]
[337361296,1725627033616,-500.0,0.00013698,2]
[337361297,1725627033626,-500.0,0.00013698,2]
[337361298,1725627033635,-500.0,0.00013698,2]
[337361299,1725627033645,-267.45521938,0.00013698,2]
[337361300,1725627033655,-500.0,0.00013698,2]
[337361301,1725627033665,-413.65199583,0.00013698,2]
[337361302,1725627033676,-500.0,0.00013698,2]
[337361303,1725627033686,-601.78,0.00013698,2]
[337361304,1725627033696,-601.78,0.00013698,2]
[337361305,1725627033706,-601.78,0.00013698,2]
[337361306,1725627033715,-601.78,0.00013698,2]
[337361307,1725627033725,-601.78,0.00013698,2]
[337361308,1725627033736,-601.78,0.00013698,2]
[337361309,1725627033746,-601.78,0.00013698,2]
[337361310,1725627033755,-601.78,0.00013698,2]
[337361311,1725627033765,-601.78,0.00013698,2]
[337361312,1725627033775,-500.0,0.00013698,2]
[337361313,1725627033785,-601.78,0.00013698,2]
[337361314,1725627033795,-601.78,0.00013698,2]
[337361315,1725627033805,-500.0,0.00013698,2]
[337361316,1725627033816,-601.78,0.00013698,2]
[337361317,1725627033826,-500.0,0.00013698,2]
[337361318,1725627033838,-601.78,0.00013698,2]
[337361319,1725627033848,-500.0,0.00013698,2]
[337361320,1725627033858,-601.78,0.00013698,2]
[337361321,1725627033867,-500.0,0.00013698,2]
[337361322,1725627033877,-601.78,0.00013698,2]
[337361323,1725627033886,-500.0,0.00013698,2]
[337361324,1725627033896,-601.78,0.00013698,2]
[337361325,1725627033905,-601.78,0.00013698,2]
[337361326,1725627033915,-500.0,0.00013698,2]
[337361327,1725627033924,-601.78,0.00013698,2]
[337361328,1725627033934,-500.0,0.00013698,2]
[337361329,1725627033944,-601.78,0.00013698,2]
[337361330,1725627033953,-500.0,0.00013698,2]
[337361331,1725627033962,-500.0,0.00013698,2]
[337361332,1725627033971,-601.78,0.00013698,2]
[337361333,1725627033980,-500.0,0.00013698,2]
[337361334,1725627033991,-601.78,0.00013698,2]
[337361335,1725627034004,-500.0,0.00013698,2]
[337361336,1725627034013,-601.78,0.00013698,2]
[337361337,1725627034022,-500.0,0.00013698,2]
[337361338,1725627034031,-601.78,0.00013698,2]
[337361339,1725627034041,-500.0,0.00013698,2]
[337361340,1725627034051,-500.0,0.00013698,2]
[337361341,1725627034061,-601.99060139,0.00013698,2]
[337361342,1725627034075,-500.0,0.00013698,2]
[337361343,1725627034085,-500.0,0.00013698,2]
[337361344,1725627034094,-500.0,0.00013698,2]
[337361345,1725627034104,-472.41612165,0.00013698,2]
[337361346,1725627034114,-500.0,0.00013698,2]
[337361347,1725627034122,-500.0,0.00013698,2]